bitfinex/quotes_SOLUSD_20250106
["timestamp","ask_amount","ask_price","bid_price","bid_amount"]
[1736183419095,13.60334604,220.29,220.22,13.60334604]
[1736183419525,13.60334604,220.3,220.23,13.60334604]
[1736183419897,0.25098,220.32,220.24,13.60334604]
[1736183419898,13.60334604,220.31,220.24,13.60334604]
[1736183420097,13.60334604,220.33,220.26,13.60334604]
[1736183421023,8.4552,220.34,220.28,13.60334604]
[1736183421340,8.4552,220.34,220.3,13.60334604]
[1736183421712,2.26,220.34,220.3,13.60334604]
[1736183422329,15.14044604,220.37,220.3,13.60334604]
[1736183422531,2.26,220.38,220.33,13.60334604]
[1736183423035,0.12549,220.37,220.33,13.60334604]
[1736183423447,6.4247,220.39,220.33,13.60334604]
[1736183423806,6.4247,220.39,220.34,13.60334604]
[1736183424120,2.26,220.4,220.37,13.60334604]
[1736183424437,2.26,220.4,220.36,13.60334604]
[1736183424638,2.26,220.4,220.34,13.60334604]
[1736183424639,0.12549,220.39,220.34,13.60334604]
[1736183424822,0.12549,220.39,220.33,13.60334604]
[1736183425221,0.12549,220.39,220.34,13.60334604]
[1736183425748,0.12549,220.37,220.31,13.60334604]
[1736183425930,13.72883604,220.37,220.31,13.60334604]
[1736183426320,0.12549,220.37,220.31,13.60334604]
[1736183427007,22.26,220.4,220.26,12.9913]
[1736183427008,13.72883604,220.39,220.32,13.60334604]
[1736183428510,15.86334604,220.4,220.33,13.60334604]
[1736183429720,13.60334604,220.39,220.32,13.60334604]
[1736183429925,13.60334604,220.39,220.26,12.9913]
[1736183429926,13.60334604,220.36,220.29,13.60334604]
[1736183430250,13.60334604,220.33,220.26,13.60334604]
[1736183430548,13.60334604,220.34,220.27,13.60334604]
[1736183430759,13.72883604,220.34,220.27,13.60334604]
[1736183431041,13.60334604,220.31,220.2,0.12549]
[1736183431209,13.60334604,220.31,220.24,13.60334604]
[1736183431410,0.12549,220.31,220.25,13.60334604]
[1736183431612,13.60334604,220.32,220.25,13.60334604]
[1736183432111,13.60334604,220.31,220.24,13.60334604]
[1736183433552,13.72883604,220.32,220.25,13.60334604]
[1736183437156,13.60334604,220.31,220.24,13.60334604]
[1736183437649,13.72883604,220.32,220.25,13.60334604]
[1736183438279,13.72883604,220.32,220.22,20.0]
[1736183438280,0.12549,220.32,220.26,13.60334604]
[1736183439362,15.14774604,220.33,220.26,13.60334604]
[1736183439540,8.84569,220.35,220.28,13.60334604]
[1736183439949,8.84569,220.35,220.22,35.16124604]
[1736183439950,8.7202,220.35,220.3,13.60334604]
[1736183441270,8.7202,220.35,220.29,13.60334604]
[1736183441437,22.32354604,220.35,220.28,13.60334604]
[1736183441870,13.60334604,220.34,220.27,13.60334604]
[1736183442332,22.32354604,220.35,220.28,13.60334604]
[1736183442528,13.60334604,220.34,220.27,13.60334604]
[1736183442733,13.60334604,220.33,220.26,13.60334604]
[1736183443175,13.60334604,220.33,220.27,13.60334604]
[1736183443356,13.72883604,220.34,220.27,13.60334604]
[1736183445457,0.12549,220.34,220.28,13.60334604]
[1736183445637,0.12549,220.34,220.29,13.60334604]
[1736183446080,0.12549,220.34,220.3,13.60334604]
[1736183446956,6.4602,220.35,220.3,13.60334604]
[1736183447162,2.38549,220.37,220.31,8.70315676]
[1736183447745,2.26,220.37,220.31,8.70315676]
[1736183448681,10.96315676,220.37,220.3,8.70315676]
[1736183449063,8.70315676,220.35,220.28,8.70315676]
[1736183449575,8.70315676,220.36,220.3,8.70315676]
[1736183449770,10.96315676,220.37,220.3,8.70315676]
[1736183451256,0.12549,220.36,220.31,8.70315676]
[1736183451466,0.12549,220.36,220.26,20.0]
[1736183451467,0.12549,220.36,220.3,8.70315676]
[1736183454094,8.82864676,220.36,220.29,8.70315676]
[1736183454990,8.70315676,220.34,220.27,8.70315676]
[1736183455359,1.68019,220.38,220.23,11.3513]
[1736183455360,2.26,220.35,220.29,8.70315676]
[1736183455878,10.96315676,220.35,220.28,8.70315676]
[1736183457278,8.70315676,220.34,220.26,8.70315676]
[1736183457881,8.82864676,220.34,220.26,8.70315676]
[1736183458053,10.96315676,220.35,220.28,8.70315676]
[1736183458674,0.12549,220.34,220.29,8.70315676]
[1736183459295,0.12549,220.34,220.3,8.70315676]
[1736183459779,0.12549,220.34,220.29,8.70315676]
[1736183460380,0.12549,220.34,220.3,8.70315676]
[1736183460587,2.26,220.35,220.31,8.70315676]
[1736183460976,2.26,220.35,220.3,8.70315676]
[1736183461870,0.12549,220.34,220.28,8.70315676]
[1736183462072,0.12549,220.3,220.2,7.0663717]
[1736183462279,8.82864676,220.3,220.23,8.70315676]
[1736183463892,8.82864676,220.3,220.24,8.70315676]
[1736183465278,8.70315676,220.31,220.24,8.70315676]
[1736183465598,6.23039,220.33,220.26,8.70315676]
[1736183465763,14.93354676,220.33,220.26,8.70315676]
[1736183466804,8.70315676,220.32,220.25,8.70315676]
[1736183467710,8.70315676,220.31,220.24,8.70315676]
[1736183469195,0.12549,220.3,220.24,8.70315676]
[1736183469488,0.12549,220.3,220.25,8.70315676]
[1736183469973,0.12549,220.31,220.26,8.70315676]
[1736183470671,0.12549,220.31,220.17,1.76259]
[1736183470672,8.70315676,220.3,220.24,8.70315676]
[1736183470900,8.70315676,220.3,220.23,8.70315676]
[1736183471104,0.12549,220.31,220.25,8.70315676]
[1736183471293,0.12549,220.31,220.26,8.70315676]
[1736183471600,0.12549,220.31,220.27,8.70315676]
[1736183472675,0.12549,220.32,220.27,8.70315676]
[1736183473179,0.12549,220.32,220.26,8.70315676]
[1736183474413,0.12549,220.32,220.25,8.70315676]
[1736183474596,8.82864676,220.32,220.25,8.70315676]
[1736183474901,8.70315676,220.31,220.24,8.70315676]
[1736183475090,8.70315676,220.3,220.23,8.70315676]
[1736183475796,8.70315676,220.29,220.22,8.70315676]
[1736183476302,8.70315676,220.3,220.23,8.70315676]
[1736183476505,8.70315676,220.29,220.22,8.70315676]
[1736183477606,8.70315676,220.28,220.21,8.70315676]
[1736183478519,0.12549,220.28,220.22,8.70315676]
[1736183478691,0.12549,220.28,220.23,8.70315676]
[1736183479988,8.82864676,220.29,220.22,8.70315676]
[1736183480521,0.12549,220.29,220.23,8.70315676]
[1736183481501,0.12549,220.29,220.18,11.3542]
[1736183481707,0.12549,220.29,220.23,8.70315676]
[1736183482518,8.70315676,220.29,220.22,8.70315676]
[1736183484113,8.70315676,220.3,220.23,8.70315676]
[1736183484484,8.70315676,220.3,220.22,8.70315676]
[1736183484690,8.70315676,220.3,220.23,8.70315676]
[1736183485413,6.5746,220.25,220.15,8.70315676]
[1736183485589,8.70315676,220.23,220.15,8.70315676]
[1736183487816,8.70315676,220.22,220.14,8.70315676]
[1736183488020,8.82864676,220.21,220.14,8.70315676]
[1736183488320,0.12549,220.21,220.15,8.70315676]
[1736183488722,6.5746,220.25,220.18,8.70315676]
[1736183488723,15.27775676,220.25,220.18,8.70315676]
[1736183488894,6.3247,220.31,220.24,8.70315676]
[1736183489091,2.24,220.28,220.26,8.70315676]
[1736183489918,2.24,220.28,220.27,8.70315676]
[1736183490627,2.24,220.28,220.26,8.70315676]
[1736183490831,2.24,220.28,220.25,8.70315676]
[1736183491534,2.24,220.28,220.26,8.70315676]
[1736183493428,6.3247,220.31,220.26,8.70315676]
[1736183493722,0.12549,220.26,220.19,8.70315676]
[1736183493947,8.70315676,220.25,220.18,8.70315676]
[1736183495109,8.70315676,220.25,220.17,8.70315676]
[1736183495315,8.70315676,220.26,220.18,8.70315676]
[1736183496416,0.12549,220.26,220.19,8.70315676]
[1736183498245,6.3247,220.31,220.23,8.70315676]
[1736183498431,6.3247,220.31,220.25,8.70315676]
[1736183498432,8.5647,220.31,220.25,8.70315676]
[1736183498631,8.5647,220.31,220.26,8.70315676]
[1736183500813,2.24,220.31,220.25,8.70315676]
[1736183501016,13.61069509,220.27,220.17,1.551]
[1736183501232,13.61069509,220.27,220.2,13.61069509]
[1736183503447,0.12549,220.27,220.21,13.61069509]
[1736183505153,20.00759509,220.3,220.22,13.61069509]
[1736183505445,13.73618509,220.28,220.21,13.61069509]
[1736183505614,13.73618509,220.28,220.11,14.8154717]
[1736183505615,13.73618509,220.24,220.11,14.8154717]
[1736183505810,13.73618509,220.24,220.17,13.61069509]
[1736183505811,0.12549,220.22,220.17,13.61069509]
[1736183506756,13.73618509,220.26,220.19,13.61069509]
[1736183507039,8.6369,220.3,220.23,13.61069509]
[1736183507247,13.61069509,220.24,220.11,1.519]
[1736183507416,13.61069509,220.22,220.14,13.61069509]
[1736183507617,13.61069509,220.21,220.14,13.61069509]
[1736183508122,0.12549,220.2,220.14,13.61069509]
[1736183508942,8.78149,220.21,220.14,13.61069509]
[1736183509118,22.39218509,220.21,220.14,13.61069509]
[1736183509642,2.36549,220.21,220.16,13.61069509]
[1736183510036,2.24,220.21,220.17,13.61069509]
[1736183510540,2.24,220.21,220.18,13.61069509]
[1736183510916,1.6526,220.24,220.19,13.61069509]
[1736183511242,2.24,220.23,220.17,13.61069509]
[1736183511542,2.24,220.23,220.18,13.61069509]
[1736183512341,2.24,220.23,220.19,13.61069509]
[1736183514444,2.24,220.23,220.2,13.61069509]
[1736183514739,2.24,220.23,220.21,13.61069509]
[1736183515627,8.656,220.26,220.21,13.61069509]
[1736183516141,0.12549,220.25,220.19,13.61069509]
[1736183518265,0.12549,220.25,220.18,13.61069509]
[1736183520856,0.12549,220.25,220.17,13.61069509]
[1736183520857,24.027864,220.25,220.17,13.61069509]
[1736183521019,24.027864,220.25,220.09,1.6653]
[1736183521020,0.12549,220.2,220.09,1.6653]
[1736183521220,13.73618509,220.2,220.12,13.61069509]
[1736183521649,13.73618509,220.2,220.13,13.61069509]
[1736183522548,13.73618509,220.2,220.14,13.61069509]
[1736183522745,0.12549,220.2,220.14,13.61069509]
[1736183524242,0.12549,220.2,220.15,13.61069509]
[1736183524550,13.61069509,220.23,220.16,13.61069509]
[1736183524722,0.12549,220.22,220.16,13.61069509]
[1736183525127,33.73618509,220.22,220.15,13.61069509]
[1736183525330,0.12549,220.2,220.14,13.61069509]
[1736183525844,13.73618509,220.2,220.14,13.61069509]
[1736183526263,13.73618509,220.2,220.13,13.61069509]
[1736183526923,23.902374,220.2,220.14,13.61069509]
[1736183527123,23.902374,220.2,220.14,8.71605804]
[1736183528347,0.12549,220.19,220.14,8.71605804]
[1736183528541,2.24,220.18,220.14,8.71605804]
[1736183528969,2.24,220.18,220.15,8.71605804]
[1736183529446,22.14284323,220.2,220.17,8.71605804]
[1736183529646,24.38284323,220.2,220.18,8.71605804]
[1736183529859,2.24,220.2,220.18,8.71605804]
[1736183530745,2.24,220.2,220.17,8.71605804]
[1736183531449,2.24,220.2,220.16,8.71605804]
[1736183531777,2.24,220.2,220.17,8.71605804]
[1736183532067,2.24,220.21,220.18,8.71605804]
[1736183532650,27.19203643,220.25,220.2,8.71605804]
[1736183532849,2.24,220.24,220.19,8.71605804]
[1736183533055,27.19203643,220.25,220.19,8.71605804]
[1736183533056,2.24,220.23,220.19,8.71605804]
[1736183533269,2.24,220.23,220.18,8.71605804]
[1736183533654,0.12549,220.22,220.17,8.71605804]
[1736183533973,8.84154804,220.22,220.15,8.71605804]
[1736183534272,0.12549,220.22,220.17,8.71605804]
[1736183535570,8.84154804,220.22,220.14,7.13300275]
[1736183535875,0.12549,220.17,220.14,7.13300275]
[1736183536271,8.84154804,220.17,220.14,7.13300275]
[1736183536775,8.71605804,220.15,220.12,7.13300275]
[1736183536969,8.71605804,220.17,220.12,7.13300275]
[1736183537269,2.24,220.15,220.12,15.84906079]
[1736183537662,2.24,220.15,220.12,7.13300275]
[1736183537863,2.24,220.15,220.11,8.71605804]
[1736183538170,2.24,220.15,220.1,8.71605804]
[1736183538673,2.24,220.15,220.09,8.71605804]
[1736183538871,2.24,220.15,220.07,11.3599]
[1736183538872,8.84154804,220.14,220.05,7.13300275]
[1736183539058,12.18942465,220.14,220.07,8.71605804]
[1736183539865,3.34787661,220.13,220.07,8.71605804]
[1736183540569,8.84154804,220.14,220.04,1.5114]
[1736183540570,0.12549,220.11,220.04,1.5114]
[1736183540777,8.84154804,220.11,220.03,8.71605804]
[1736183541077,0.12549,220.09,220.03,8.71605804]
[1736183541782,0.12549,220.07,220.01,8.71605804]
[1736183542085,2.36549,220.07,220.01,8.71605804]
[1736183542759,2.36549,220.07,220.02,8.71605804]
[1736183543149,2.36549,220.07,220.02,13.6342071]
[1736183544355,2.36549,220.07,220.01,13.6342071]
[1736183544872,2.36549,220.07,220.02,13.6342071]
[1736183545050,2.36549,220.07,220.0,20.0]
[1736183545051,2.24,220.07,220.04,13.6342071]
[1736183546282,2.24,220.07,220.03,13.6342071]
[1736183546981,13.7596971,220.11,220.04,13.6342071]
[1736183547291,2.24,220.1,220.04,13.6342071]
[1736183549183,0.12549,220.09,220.04,13.6342071]
[1736183549391,15.8742071,220.1,220.04,13.6342071]
[1736183550690,2.24,220.1,220.06,13.6342071]
[1736183552494,2.24,220.11,220.06,13.6342071]
[1736183552891,13.6342071,220.12,220.06,13.6342071]
[1736183553198,22.15062054,220.13,220.08,13.6342071]
[1736183553992,13.6342071,220.15,220.08,13.6342071]
[1736183554197,2.24,220.14,220.09,13.6342071]
[1736183555401,2.24,220.14,220.08,13.6342071]
[1736183555696,15.8742071,220.14,220.07,13.6342071]
[1736183556472,15.8742071,220.14,220.05,11.3609]
[1736183556473,13.6342071,220.13,220.06,13.6342071]
[1736183556675,15.8742071,220.14,220.07,13.6342071]
[1736183558404,6.191,220.24,220.13,13.6342071]
[1736183558719,13.6342071,220.22,220.15,13.6342071]
[1736183558878,13.7596971,220.21,220.14,13.6342071]
[1736183559478,13.6342071,220.2,220.13,13.6342071]
[1736183559786,13.6342071,220.19,220.12,13.6342071]
[1736183560994,13.6342071,220.16,220.09,13.6342071]
[1736183561984,13.6342071,220.15,220.09,13.6342071]
[1736183562609,13.6342071,220.16,220.09,13.6342071]
[1736183562770,13.6342071,220.17,220.1,13.6342071]
[1736183562975,13.6342071,220.16,220.09,13.6342071]
[1736183564399,13.6342071,220.17,220.1,13.6342071]
[1736183564604,13.6342071,220.17,220.07,11.3595]
[1736183564605,13.6342071,220.18,220.11,13.6342071]
[1736183564778,13.6342071,220.17,220.1,33.6342071]
[1736183565490,13.6342071,220.16,220.09,13.6342071]
[1736183565806,13.6342071,220.15,220.08,13.6342071]
[1736183566993,8.72073511,220.15,220.08,8.72073511]
[1736183567588,8.72073511,220.14,220.07,20.08023511]
[1736183568089,8.72073511,220.15,220.08,8.72073511]
[1736183569320,8.72073511,220.17,220.1,8.72073511]
[1736183570190,8.72073511,220.18,220.11,8.72073511]
[1736183571118,8.72073511,220.19,220.12,8.72073511]
[1736183571419,8.72073511,220.2,220.13,8.72073511]
[1736183571603,8.72073511,220.19,220.13,8.72073511]
[1736183572919,8.72073511,220.2,220.13,8.72073511]
[1736183573314,10.96073511,220.21,220.14,8.72073511]
[1736183574017,3.33084649,220.2,220.14,8.72073511]
[1736183574511,3.33084649,220.2,220.15,8.72073511]
[1736183574704,30.86323035,220.22,220.15,8.72073511]
[1736183575308,3.33191354,220.21,220.15,8.72073511]
[1736183575616,0.25098,220.15,220.03,1.6405]
[1736183575802,8.72073511,220.08,220.03,1.6405]
[1736183576822,8.72073511,220.1,220.03,1.6405]
[1736183577624,8.72073511,220.09,220.03,1.6405]
[1736183579128,13.63209105,220.11,220.03,15.27259105]
[1736183580630,13.63209105,220.11,220.04,13.63209105]
[1736183581114,33.63209105,220.13,220.06,13.63209105]
[1736183581314,33.63209105,220.13,220.04,0.12549]
[1736183581315,13.63209105,220.15,220.08,13.63209105]
[1736183581625,13.63209105,220.15,220.04,35.263874]
[1736183581626,15.87209105,220.17,220.1,13.63209105]
[1736183581804,3.33800386,220.14,220.1,13.63209105]
[1736183581999,3.33800386,220.14,220.09,13.63209105]
[1736183582725,3.33800386,220.13,220.12,1.6238]
[1736183583035,3.33800386,220.13,220.12,25.526174]
[1736183583203,22.14249524,220.22,220.13,0.12549]
[1736183583204,3.33800386,220.21,220.13,0.12549]
[1736183583402,3.33800386,220.21,220.19,13.63209105]
[1736183583637,3.33800386,220.21,220.18,13.63209105]
[1736183583932,3.33800386,220.2,220.18,13.63209105]
[1736183584737,3.33800386,220.2,220.19,13.63209105]
[1736183584908,22.14249524,220.22,220.19,13.63209105]
[1736183586034,22.14249524,220.22,220.18,13.63209105]
[1736183586248,22.14249524,220.22,220.16,13.63209105]
[1736183586433,13.63209105,220.19,220.12,15.25589105]
[1736183586625,13.63209105,220.18,220.12,15.25589105]
[1736183587013,13.63209105,220.19,220.12,15.25589105]
[1736183587310,13.63209105,220.19,220.13,13.63209105]
[1736183587527,13.63209105,220.18,220.12,15.25589105]
[1736183587838,13.63209105,220.15,220.09,13.63209105]
[1736183588841,13.63209105,220.14,220.08,13.63209105]
[1736183589139,2.24,220.18,220.06,15.15949105]
[1736183589343,13.63209105,220.12,220.05,13.63209105]
[1736183589752,13.63209105,220.11,220.04,13.75758105]
[1736183590447,13.63209105,220.11,220.05,13.63209105]
[1736183590748,13.63209105,220.12,220.06,13.63209105]
[1736183591244,13.63209105,220.14,220.07,13.63209105]
[1736183591649,13.63209105,220.13,220.07,13.63209105]
[1736183591961,13.63209105,220.12,220.06,13.63209105]
[1736183593039,13.63209105,220.13,220.07,13.63209105]
[1736183593349,13.63209105,220.11,220.05,13.63209105]
[1736183594029,13.63209105,220.12,220.06,13.63209105]
[1736183596670,13.63209105,220.12,220.05,13.63209105]
[1736183598552,13.63209105,220.11,220.05,13.63209105]
[1736183602047,13.63209105,220.13,220.06,13.63209105]
[1736183602253,13.63209105,220.15,220.09,13.63209105]
[1736183602431,13.63209105,220.15,220.08,13.63209105]
[1736183603257,13.63209105,220.17,220.11,13.63209105]
[1736183603766,13.63209105,220.16,220.1,13.63209105]
[1736183603938,13.63209105,220.15,220.09,13.63209105]
[1736183607956,13.63209105,220.16,220.1,13.63209105]
[1736183609060,13.63209105,220.17,220.1,13.63209105]
[1736183611058,8.71948806,220.16,220.1,8.71948806]
[1736183611459,2.24,220.2,220.11,8.71948806]
[1736183611673,6.3242,220.21,220.15,8.71948806]
[1736183611674,8.71948806,220.21,220.15,8.71948806]
[1736183612044,30.8619833,220.22,220.16,8.71948806]
[1736183612645,8.71948806,220.21,220.15,8.71948806]
[1736183613057,13.62261799,220.17,220.11,21.5652]
[1736183613265,13.62261799,220.17,220.1,13.62261799]
[1736183613450,13.62261799,220.17,220.11,13.62261799]
[1736183613969,13.62261799,220.18,220.11,13.62261799]
[1736183614259,13.62261799,220.2,220.13,13.62261799]
[1736183614478,13.62261799,220.2,220.14,13.62261799]
[1736183615063,0.12549,220.21,220.15,13.62261799]
[1736183615242,13.74810799,220.21,220.14,13.62261799]
[1736183615644,13.62261799,220.2,220.14,13.62261799]
[1736183615948,13.62261799,220.2,220.13,13.62261799]
[1736183618845,13.62261799,220.19,220.13,13.62261799]
[1736183619167,13.62261799,220.18,220.11,13.62261799]
[1736183619369,13.62261799,220.19,220.12,13.62261799]
[1736183621765,13.62261799,220.19,220.13,13.62261799]
[1736183623042,13.62261799,220.2,220.13,13.62261799]
[1736183623470,13.62261799,220.19,220.12,13.62261799]
[1736183624271,13.62261799,220.19,220.13,13.62261799]
[1736183627654,13.62261799,220.17,220.11,13.62261799]
[1736183627855,13.62261799,220.16,220.1,13.62261799]
[1736183628472,0.12549,220.21,220.11,13.62261799]
[1736183628473,13.62261799,220.17,220.11,13.62261799]
[1736183628782,13.62261799,220.18,220.11,13.62261799]
[1736183629078,13.62261799,220.18,220.12,13.62261799]
[1736183629281,13.62261799,220.19,220.12,13.62261799]
[1736183629754,13.62261799,220.2,220.14,13.62261799]
[1736183629954,13.62261799,220.19,220.13,13.62261799]
[1736183630582,13.62261799,220.2,220.13,13.62261799]
[1736183631582,13.62261799,220.2,220.14,13.62261799]
[1736183631752,13.62261799,220.2,220.13,13.62261799]
[1736183632165,0.12549,220.21,220.13,13.62261799]
[1736183632371,13.62261799,220.2,220.13,13.62261799]
[1736183632569,13.62261799,220.19,220.12,13.62261799]
[1736183632782,13.62261799,220.18,220.11,13.62261799]
[1736183632954,8.71793161,220.18,220.11,8.71793161]
[1736183633662,8.71793161,220.18,220.1,11.3584]
[1736183633663,8.71793161,220.2,220.13,8.71793161]
[1736183633960,8.84342161,220.21,220.14,8.71793161]
[1736183634167,22.24,220.22,220.1,11.3584]
[1736183634168,20.0,220.22,220.16,8.71793161]
[1736183634393,10.26723161,220.23,220.16,8.71793161]
[1736183634851,8.71793161,220.22,220.16,8.71793161]
[1736183635578,8.71793161,220.23,220.16,8.71793161]
[1736183635883,58.04875487,220.25,220.18,8.71793161]
[1736183636870,8.71793161,220.23,220.16,8.71793161]
[1736183637183,8.71793161,220.2,220.14,1.6176]
[1736183637376,8.71793161,220.2,220.14,10.33553161]
[1736183637569,8.71793161,220.21,220.15,8.71793161]
[1736183637785,8.71793161,220.22,220.15,8.71793161]
[1736183638570,8.71793161,220.23,220.16,8.71793161]
[1736183638773,8.71793161,220.24,220.17,8.71793161]
[1736183639789,8.71793161,220.23,220.16,8.71793161]
[1736183640199,8.71793161,220.24,220.17,8.71793161]
[1736183640378,8.71793161,220.23,220.16,8.71793161]
[1736183640907,8.71793161,220.22,220.15,8.71793161]
[1736183641081,8.71793161,220.21,220.15,8.71793161]
[1736183642210,8.71793161,220.22,220.15,8.71793161]
[1736183642669,8.71793161,220.23,220.16,8.71793161]
[1736183644400,8.71793161,220.22,220.16,8.71793161]
[1736183644607,8.71793161,220.21,220.15,8.71793161]
[1736183644999,8.71793161,220.22,220.15,8.71793161]
[1736183645199,8.71793161,220.22,220.14,1.6176]
[1736183645200,8.71793161,220.18,220.12,11.3569]
[1736183645399,8.71793161,220.18,220.11,14.75243161]
[1736183645579,8.71793161,220.18,220.12,0.12549]
[1736183645962,8.71793161,220.19,220.12,8.84342161]
[1736183647683,8.71793161,220.18,220.09,1.5636]
[1736183647998,8.71793161,220.17,220.11,8.71793161]
[1736183649061,8.71793161,220.17,220.09,1.5636]
[1736183649267,8.71793161,220.15,220.09,10.28153161]
[1736183649682,8.71793161,220.15,220.09,1.5636]
[1736183649892,8.71793161,220.14,220.09,1.5636]
[1736183650278,8.71793161,220.14,220.07,8.71793161]
[1736183650665,8.71793161,220.13,220.07,8.71793161]
[1736183650887,8.71793161,220.15,220.08,8.71793161]
[1736183651687,8.71793161,220.14,220.07,8.71793161]
[1736183652889,2.24,220.18,220.04,1.6451]
[1736183652890,8.71793161,220.11,220.04,1.6451]
[1736183653192,8.71793161,220.1,220.04,10.36303161]
[1736183653788,8.71793161,220.07,220.04,1.6451]
[1736183653991,8.71793161,220.07,220.0,20.0]
[1736183654287,8.71793161,220.05,220.0,20.0]
[1736183654467,8.71793161,220.04,220.0,20.0]
[1736183656189,7.52528751,220.04,220.0,20.0]
[1736183657585,8.71793161,220.03,220.0,20.0]
[1736183658198,8.71793161,220.01,220.0,20.0]
[1736183659288,8.71793161,220.01,219.86,7.13300275]
[1736183659289,5.0,219.92,219.76,19.67462556]
[1736183659462,5.0,219.92,219.86,8.71793161]
[1736183660274,5.0,219.92,219.87,8.71793161]
[1736183660470,5.0,219.92,219.88,8.71793161]
[1736183660675,5.0,219.92,219.87,8.71793161]
[1736183661178,5.0,219.87,219.79,12.05646714]
[1736183661383,5.0,219.89,219.86,8.71793161]
[1736183662319,5.0,219.87,219.79,2.31436714]
[1736183662476,5.0,219.87,219.86,8.71793161]
[1736183662677,5.0,219.87,219.85,8.71793161]
[1736183662977,5.0,219.89,219.85,8.71793161]
[1736183663281,5.0,219.87,219.85,8.71793161]
[1736183663480,5.0,219.87,219.84,8.71793161]
[1736183666700,5.0,219.87,219.85,8.71793161]
[1736183667418,5.0,219.87,219.86,8.71793161]
[1736183667572,5.0,219.91,219.86,8.71793161]
[1736183667885,5.0,219.91,219.88,8.71793161]
[1736183668088,5.0,219.91,219.89,8.71793161]
[1736183668414,5.0,219.95,219.84,24.027864]
[1736183668415,5.0,219.93,219.9,8.71793161]
[1736183668710,5.0,219.93,219.89,8.71793161]
[1736183668909,5.0,219.93,219.9,8.71793161]
[1736183669076,5.0,219.95,219.91,8.71793161]
[1736183669478,5.0,219.93,219.89,8.71793161]
[1736183669873,5.0,219.93,219.9,8.71793161]
[1736183670086,5.0,219.95,219.9,8.71793161]
[1736183670294,5.0,219.93,219.9,8.71793161]
[1736183670675,10.0,219.95,219.9,8.71793161]
[1736183670877,5.0,219.93,219.9,8.71793161]
[1736183671188,5.0,219.98,219.92,8.71793161]
[1736183671369,5.0,219.98,219.93,8.71793161]
[1736183671785,5.0,219.98,219.94,8.71793161]
[1736183672077,5.0,219.98,219.93,8.71793161]
[1736183672474,5.0,219.99,219.92,0.12549]
[1736183672678,10.0,220.02,219.98,8.71793161]
[1736183672913,10.0,220.04,219.99,8.71793161]
[1736183673080,5.0,220.04,219.95,0.12549]
[1736183673285,5.0,220.04,219.99,32.62030561]
[1736183674003,5.0,220.04,220.0,8.71793161]
[1736183674298,5.0,220.04,219.99,32.62030561]
[1736183674513,5.0,220.04,220.0,8.71793161]
[1736183675305,5.0,220.04,220.0,13.63641715]
[1736183675600,5.0,220.04,219.99,13.63641715]
[1736183676794,5.0,220.04,220.0,13.63641715]
[1736183681215,10.0,220.06,220.0,13.63641715]
[1736183681387,10.0,220.06,220.01,13.63641715]
[1736183681995,10.0,220.06,220.02,13.63641715]
[1736183683306,10.0,220.08,220.04,13.63641715]
[1736183683506,10.0,220.1,220.06,13.63641715]
[1736183684008,23.63641715,220.1,220.04,33.63641715]
[1736183684589,5.0,220.06,220.0,13.63641715]
[1736183685006,18.63641715,220.06,220.0,13.63641715]
[1736183686208,5.0,220.06,220.02,13.63641715]
[1736183687511,5.0,220.06,220.01,13.63641715]
[1736183689710,5.0,220.03,219.99,13.63641715]
[1736183689912,5.0,220.03,219.98,13.63641715]
[1736183690712,18.63641715,220.03,219.96,13.63641715]
[1736183691010,23.63641715,220.01,219.95,13.63641715]
[1736183691510,23.63641715,220.01,219.97,20.0]
[1736183691691,10.0,219.98,219.92,13.63641715]
[1736183692103,23.63641715,219.98,219.91,37.41330115]
[1736183692305,23.63641715,219.98,219.92,13.63641715]
[1736183693720,5.0,219.96,219.91,13.63641715]
[1736183694101,5.0,219.96,219.92,13.63641715]
[1736183694907,5.0,219.96,219.91,13.63641715]
[1736183695106,5.0,219.96,219.92,13.63641715]
[1736183697134,5.0,219.96,219.92,8.73378676]
[1736183697600,5.0,219.96,219.93,8.73378676]
[1736183698097,5.0,219.98,219.94,8.73378676]
[1736183699196,10.0,219.98,219.93,8.73378676]
[1736183700411,10.0,220.0,219.95,8.73378676]
[1736183700719,5.0,219.98,219.95,8.73378676]
[1736183701028,10.0,219.98,219.94,8.73378676]
[1736183701421,5.0,219.98,219.94,8.73378676]
[1736183701722,10.0,219.98,219.93,8.73378676]
[1736183701920,5.0,219.98,219.93,8.73378676]
[1736183702118,5.0,220.0,219.96,8.73378676]
[1736183702528,10.0,220.0,219.96,8.73378676]